Workbook

Sheet Invoice - Summary Page
A1: (delete this text) *PRINT ON LGA LETTER HEAD* (delete this text)
A2: COUNTY BASED MEDI-CAL ADMINISTRATIVE ACTIVITIES (CMAA) - SUMMARY INVOICE
A4: Local Governmental Agency: | D4: ABC County | H4: Program/Department: | J4: Public Health
A6: Contract Number: | D6: 14-85697 | H6: Claiming Unit: | J6: Outreach Program
A8: Period of Service: | D8: 07/01/2016 - 09/30/2016 | H8: Invoice Number: | J8: 16/17-1
A10: COST CATEGORIES | F10: =IF(ISNUMBER(SEARCH("R",J8)), "Original Inv. Amt.", " ") ->  | J10: =IF(ISNUMBER(FIND("R",J8)), "Revised Inv. Amt.", " ") -> 
B11: Total Amount to be Reimbursed at 50% | H11: ='Invoice - Claim Calculation'!E74 -> 40561.76109 | J11: =IF(F11>=1,F11-H11," ") -> 
B13: Total Amount to be Reimbursed at 75% | H13: ='Invoice - Claim Calculation'!F74 -> 7697.704595 | J13: =IF(F13>=1, F13-H13, " ") -> 
B15: Total amount of Fed. Govt. Reimbursement | H15: ='Invoice - Claim Calculation'!D74 -> 48259.46568 | J15: =IF(F15>=1, F15-H15, " ") ->  | K15: =IF(J15<=-1,"Due to the State"," ") -> 
G16: =IF('Invoice - Claim Calculation'!B74="NON-COMPLIANT", "CPE RESTRICTED", " ") -> 
A17: I HEREBY CERTIFY under penalty of perjury that: 1) I am the official responsible for the administration, examination, and settlement of accounts concerning Medicaid Administrative Activities for the above-named agency and am authorized to make this certification on behalf of the agency. 2) To the best of my knowledge and belief each expenditure is in all respects true, correct, and in accordance with state and federal law, and regulation, including Section 1903(a) of the Social Security Act and 42 C.F.R. Section 433.51. 3) The expenditures certified are based on actual, total expenditures of public funds that have been made to eligible Medicaid beneficiaries pursuant to all applicable requirements of federal law and regulation. 4) The expenditures certified are allowable Medicaid costs in accordance with all applicable requirements of federal law and regulation. 5) The expenditures certified have not previously been, nor will they be, certified at any other time to receive federal financial participation under Medicaid or any other program (unless being resubmitted under correction or revision). 6) The costs certified in this invoice have not been paid in an all-inclusive or capitation rate. I understand that the State of California must deny payment of any invoice submitted if it determines the certification is not adequately supported for purposes of claiming federal financial participation. I have notice that this information is to be used for filing of a claim with the federal government for federal financial participation and that a knowing misrepresentation constitutes a violation of the federal and state False Claims Acts.
A18: Jim Morrison
A19: Printed Name of Signer | I19: Signature
A20: LGA MAA/TCM Coordinator
A21: Title | I21: Date
A22: For DHCS Program use only
A23: I hereby certify to the best of my knowledge and belief that the claims submitted and attached herein, are claims for the Medicaid program under Title XIX of the Social Security Act (the Act), and as applicable, under the State Children's Health Insurance Program (SCHIP) under Title XXI of the Act, and are allowable in accordance with applicable implementing federal, state, and local statutes, regulations, policies, and the state plan (including any approved waivers of the state plan) approved by the Secretary and in effect at the corresponding time commensurate with the claims aforementioned and furthermore, I certify that federal matching funds are not being claimed for any expenditure under any Medicaid and/or SCHIP state plan amendment that was submitted after January 2, 2001, and that has not been approved by the Secretary effective for the applicable quarter associated with the claims aforementioned. Further, I direct the Accounting section to process the attached claims for payment certifying to the best of my knowledge and belief that the payee has met the contractual conditions for such payment(s) and the following Accounting codes are appropriate for such payment(s). This invoice has been checked against our records and found to be the original one presented for payment and has not previously been paid. We have recorded this payment so as to prevent a later duplicate payment.
J24: SSM I
A25: Signature | H25: Date | J25: Title | L25: Analyst Initials
A27: CALSTARS CODE: | E27: -95918-9912-702-42-60 LGA
D28: FY | L28: Rev. 12/8/14 DHCS/SNFD

Sheet Invoice - T.S. Results Summary
A1: Local Governmental Agency: | C1: ='Invoice - Summary Page'!D4 -> ABC County | H1: Program/Department: | J1: ='Invoice - Summary Page'!J4 -> Public Health
A2: Contract Number: | C2: ='Invoice - Summary Page'!D6 -> 14-85697 | H2: Claiming Unit: | J2: ='Invoice - Summary Page'!J6 -> Outreach Program
A3: Period of Service: | C3: ='Invoice - Summary Page'!D8 -> 07/01/2016 - 09/30/2016 | H3: Invoice Number: | J3: ='Invoice - Summary Page'!J8 -> 16/17-1
A5: Code | B5: Description | H5: SPMP Total Hours | I5: SPMP Activity % | J5: Non-SPMP Total Hours | K5: Non-SPMP Activity % | L5: Medi-Cal % | M5: Method Used
A6: 1 | B6: Other Programs/Activities | H6: 248.5 | I6: =IF(H38=0,0,H6/H38) -> 0.2369487485 | J6: 76.75 | K6: =IF(J38=0,0,J6/J38) -> 0.04005218526
A7: 2 | B7: Direct Patient Care | I7: =IF(H38=0,0,H7/H38) -> 0 | K7: =IF(J38=0,0,J7/J38) -> 0
A8: 3 | B8: Outreach to Non Medi-Cal Programs | I8: =IF(H38=0,0,H8/H38) -> 0 | K8: =IF(J38=0,0,J8/J38) -> 0
A9: 4 | B9: Medi-Cal Outreach | H9: 86.5 | I9: =IF(H38=0,0,H9/H38) -> 0.08247914184 | K9: =IF(J38=0,0,J9/J38) -> 0 | L9: 1
A10: 5 | B10: Referral, Coordination, and Monitoring of Non Medi-Cal Services | I10: =IF(H38=0,0,H10/H38) -> 0 | K10: =IF(J38=0,0,J10/J38) -> 0
A11: 6 | B11: Referral, Coordination, and Monitoring of Medi-Cal Services | H11: 185.5 | I11: =IF(H38=0,0,H11/H38) -> 0.1768772348 | J11: 35.75 | K11: =IF(J38=0,0,J11/J38) -> 0.01865622962 | L11: 0.4275 | M11: ACC
A12: 7 | B12: Facilitating Non Med-Cal Application | I12: =IF(H38=0,0,H12/H38) -> 0 | K12: =IF(J38=0,0,J12/J38) -> 0
A13: 8 | B13: Facilitating Med-Cal Application | I13: =IF(H38=0,0,H13/H38) -> 0 | K13: =IF(J38=0,0,J13/J38) -> 0 | L13: 1
A14: 9 | B14: Arranging and/or Providing Non-Emergency, Non-Medical Transportation to a Non Medi-Cal Covered Service | I14: =IF(H38=0,0,H14/H38) -> 0 | K14: =IF(J38=0,0,J14/J38) -> 0
A15: 10 | B15: Arranging and/or Providing Non-Emergency, Non-Medical Transportation to a Medi-Cal Covered Service | I15: =IF(H38=0,0,H15/H38) -> 0 | K15: =IF(J38=0,0,J15/J38) -> 0 | M15: ACC
A16: 11 | B16: Contract Administration for Non Medi-Cal Covered Services | I16: =IF(H38=0,0,H16/H38) -> 0 | J16: 25.5 | K16: =IF(J38=0,0,J16/J38) -> 0.0133072407
A17: 12 | B17: Contract Administration (A) for Medi-Cal Services specific for Medi-Cal populations | I17: =IF(H38=0,0,H17/H38) -> 0 | K17: =IF(J38=0,0,J17/J38) -> 0 | L17: 1
A18: 13 | B18: Contract Administration (B) for Medi-Cal Services specific for Medi-Cal and Non Medi-Cal populations | I18: =IF(H38=0,0,H18/H38) -> 0 | J18: 58.75 | K18: =IF(J38=0,0,J18/J38) -> 0.03065883888 | L18: 0.4275 | M18: ACC
A19: 14 | B19: Program Planning & Policy Development for Non Medi-Cal Services | I19: =IF(H38=0,0,H19/H38) -> 0 | J19: 68.25 | K19: =IF(J38=0,0,J19/J38) -> 0.03561643836
A20: 15 | B20: Program Planning & Policy Development (A) (Non-enhanced) for Medi-Cal Services for Medi-Cal clients | I20: =IF(H38=0,0,H20/H38) -> 0 | K20: =IF(J38=0,0,J20/J38) -> 0 | L20: 1
A21: 16 | B21: Program Planning & Policy Development Skilled Professional Medical Personnel (SPMP) (A) (Enhanced) for Medi-Cal Services for Medi-Cal clients | I21: =IF(H38=0,0,H21/H38) -> 0 | L21: 1
A22: 17 | B22: Program Planning & Policy Development (B) (Non-enhanced) for Medi-Cal Services for Medi-Cal and Non Medi-Cal clients | H22: 16.5 | I22: =IF(H38=0,0,H22/H38) -> 0.01573301549 | J22: 60.5 | K22: =IF(J38=0,0,J22/J38) -> 0.03157208089 | L22: 0.4275 | M22: ACC
A23: 18 | B23: Program Planning & Policy Development (SPMP) (B) (Enhanced) for Medi-Cal Services for Medi-Cal and Non Medi-Cal clients | H23: 185.75 | I23: =IF(H38=0,0,H23/H38) -> 0.1771156138 | L23: 0.4275 | M23: ACC
A24: 19 | B24: MAA/TCM Coordination and Claims Administration | I24: =IF(H38=0,0,H24/H38) -> 0 | J24: 32.75 | K24: =IF(J38=0,0,J24/J38) -> 0.01709067189 | L24: 1
A25: 20 | B25: MAA/TCM Implementation Training | H25: 15.5 | I25: =IF(H38=0,0,H25/H38) -> 0.0147794994 | J25: 9.25 | K25: =IF(J38=0,0,J25/J38) -> 0.004827136334 | L25: 1
A26: 21 | B26: General Administration | H26: 174.75 | I26: =IF(H38=0,0,H26/H38) -> 0.1666269368 | J26: 955 | K26: =IF(J38=0,0,J26/J38) -> 0.4983692107
A27: 22 | B27: Paid Time Off (PTO) | H27: 135.75 | I27: =IF(H38=0,0,H27/H38) -> 0.1294398093 | J27: 593.75 | K27: =IF(J38=0,0,J27/J38) -> 0.3098499674
A28: 23 | B28: Non-Targeted Case Management (TCM) | I28: =IF(H38=0,0,H28/H38) -> 0 | K28: =IF(J38=0,0,J28/J38) -> 0
A29: 24 | B29: Providing TCM Service Components | I29: =IF(H38=0,0,H29/H38) -> 0 | K29: =IF(J38=0,0,J29/J38) -> 0
A30: 25 | B30: TCM Encounter - Related Activities | I30: =IF(H38=0,0,H30/H38) -> 0 | K30: =IF(J38=0,0,J30/J38) -> 0
A31: 26 | B31: Travel Related to Providing TCM | I31: =IF(H38=0,0,H31/H38) -> 0 | K31: =IF(J38=0,0,J31/J38) -> 0
A32: 27 | B32: Supervision of Case Managers | I32: =IF(H38=0,0,H32/H38) -> 0 | K32: =IF(J38=0,0,J32/J38) -> 0
A33: 28 | B33: Encounter Entry into TCM On-Line System | I33: =IF(H38=0,0,H33/H38) -> 0 | K33: =IF(J38=0,0,J33/J38) -> 0
A34: 29 | B34: TCM Data Systems and Claiming Coordination | I34: =IF(H38=0,0,H34/H38) -> 0 | K34: =IF(J38=0,0,J34/J38) -> 0
A35: 30 | B35: TCM Quality Assurance/Performance Monitoring | I35: =IF(H38=0,0,H35/H38) -> 0 | K35: =IF(J38=0,0,J35/J38) -> 0
A36: 31 | B36: TCM Subcontract Administration | I36: =IF(H38=0,0,H36/H38) -> 0 | K36: =IF(J38=0,0,J36/J38) -> 0
A37: 32 | B37: TCM Program Planning & Policy Development | I37: =IF(H38=0,0,H37/H38) -> 0 | K37: =IF(J38=0,0,J37/J38) -> 0
A38: TOTALS | H38: =SUM(H6:H37) -> 1048.75 | I38: =SUM(I6:I37) -> 1 | J38: =SUM(J6:J37) -> 1916.25 | K38: =SUM(K6:K37) -> 1
A39: Total Claimable Portion | H39: =SUM(H9,H11,H13,H15,H17:H18,H20:H27) -> 800.25 | I39: =SUM(I9,I11,I13,I15,I17:I18,I20:I27) -> 0.7630512515 | J39: =SUM(J9,J11,J13,J15,J17:J18,J20:J27) -> 1745.75 | K39: =SUM(K9,K11,K13,K15,K17:K18,K20:K27) -> 0.9110241357
A40: Total Non-Claimable Portion | H40: =SUM(H6:H8,H10,H12,H14,H16,H19,H28:H37) -> 248.5 | I40: =SUM(I6:I8,I10,I12,I14,I16,I19,I28:I37) -> 0.2369487485 | J40: =SUM(J6:J8,J10,J12,J14,J16,J19,J28:J37) -> 170.5 | K40: =SUM(K6:K8,K10,K12,K14,K16,K19,K28:K37) -> 0.08897586432
A42: Time Survey Frequency Used to Determine the Activity Percentages:
A44: Claiming unit certification: I certify under penalty of perjury that the time survey participants within this claiming unit are not instructed to perform any additional MAA related activities (other than those related to the actual recording of time on the time survey form) during the time survey period and that the time recorded by the participants reflects only those activities that would be performed during the normal course of an average work day. Based on my knowledge of the activities normally performed by the time survey participants within this claiming unit, I believe that the summary time survey results are a reasonable proxy, or in the case of the perpetual time survey – actual results, of the time spent during the entire period of service and result in allowable costs consistent with the requirements of OMB Circular A-87.
A45: Kimberly Dahl | E45: Chief of Administration | K45: Date
A46: Printed Name of Claiming Unit Reviewer | E46: Classification/Title | G46: Signature | K46: Date
A48: LGA certification: I hereby certify to the best of my knowledge and belief that the information contained herein accurately describes the MAA activities performed during the time survey period and the time survey results are reflective of MAA activities performed during the entire period of service. I concur with the claiming unit’s assessment that the summary time survey results are a reasonable proxy, or in the case of the perpetual time survey – actual results, of the claiming unit’s activities for the entire period of service and result in allowable costs consistent with the requirements of OMB Circular A-87.
A49: Dion Andres | E49: LGA MAA/TCM Coordinator | K49: Date
A50: Printed Name of LGA Reviewer | E50: Classification/Title | G50: Signature | K50: Date
A52: DHCS certification: I hereby certify to the best of my knowledge and belief that the information contained herein accurately describes the MAA activities performed by the time survey participants of the named claiming unit. I concur with the claiming unit’s assessment that the summary time survey results are a reasonable proxy, or in the case of the perpetual time survey – actual results, of the claiming unit’s activities for the entire period of service and result in allowable costs consistent with the requirements of OMB Circular A-87. I have evaluated the actual activities performed, the positions of the staff performing the activities, and the amount of time spent in the performance of the activities and believe they are necessary for the proper and efficient administration of the Medi-Cal Program.
A54: Printed Name of DHCS Reviewer | E54: Classification/Title | G54: Signature | K54: Date
J55: ='Invoice - Summary Page'!L28 -> Rev. 12/8/14 DHCS/SNFD

Sheet Invoice - Revenue Worksheet
A1: Local Governmental Agency: | B1: ='Invoice - Summary Page'!$D$4 -> ABC County | F1: Program: | H1: ='Invoice - Summary Page'!$J$4 -> Public Health
A2: Contract Number: | B2: ='Invoice - Summary Page'!$D$6 -> 14-85697 | F2: Claiming Unit: | H2: ='Invoice - Summary Page'!$J$6 -> Outreach Program
A3: Period of Service: | B3: ='Invoice - Summary Page'!$D$8 -> 07/01/2016 - 09/30/2016 | F3: Invoice #: | H3: ='Invoice - Summary Page'!$J$8 -> 16/17-1
A4: SOURCE and DESCRIPTION | C4: Non Offset Funds | D4: CP#1 | E4: CP#2 | F4: CP#3 (a & b) | G4: CP#4 | H4: CP#5 | I4: CP#6 | J4: TOTAL
D5: SPMP | E5: Non-SPMP | F5: Non-Claimable | G5: Direct-Enhanced | H5: Direct-Non-Enhanced | I5: Allocated | J5: (CPs 1 - 6)
A6: Medi-Cal Fees + Match
A7: MediCal reimbursement fees | F7: 50000 | J7: =SUM(F7:I7) -> 50000
A8: Title XIX MAA Revenue | C8: 58350 | J8: =SUM(F8:I8) -> 0
A9: Medi-Cal Reimbursement (% of Exp) Directly Observed Therapy | J9: =SUM(F9:I9) -> 0
A10: Total Medi-Cal Fees + Match | C10: =SUM(C7:C9) -> 58350 | F10: =SUM(F7:F9) -> 50000 | G10: =SUM(G7:G9) -> 0 | H10: =SUM(H7:H9) -> 0 | I10: =SUM(I7:I9) -> 0 | J10: =SUM(F10:I10) -> 50000
A11: Federal Grants + Match
A12: Federal Outreach Grant | D12: 15000 | J12: =SUM(D12:I12) -> 15000
A13: Local Required Match | D13: 7500 | J13: =SUM(D13:I13) -> 7500
A14: Other Revenue | J14: =SUM(D14:I14) -> 0
A15: Total Federal Grants + Match | C15: =SUM(C12:C14) -> 0 | D15: =SUM(D12:D14) -> 22500 | E15: 0 | F15: 0 | G15: 0 | H15: 0 | I15: 0 | J15: =SUM(D15:I15) -> 22500
A16: State General Fund
A17: State - Other (% of Exp) - Grant | J17: =SUM(D17:I17) -> 0
A18: SOURCE and DESCRIPTION | J18: =SUM(D18:I18) -> 0
J19: =SUM(D19:I19) -> 0
A20: Total State General Fund | C20: =SUM(C17:C19) -> 0 | D20: =SUM(D17:D19) -> 0 | E20: 0 | F20: 0 | G20: 0 | H20: 0 | I20: 0 | J20: =SUM(D20:I20) -> 0
A21: Medicare
A22: SOURCE and DESCRIPTION | J22: =SUM(F22:I22) -> 0
A23: SOURCE and DESCRIPTION | J23: =SUM(F23:I23) -> 0
A24: SOURCE and DESCRIPTION | J24: =SUM(F24:I24) -> 0
A25: Total Medicare | C25: =SUM(C22:C24) -> 0 | F25: =SUM(F22:F24) -> 0 | G25: =SUM(G22:G24) -> 0 | H25: =SUM(H22:H24) -> 0 | I25: =SUM(I22:I24) -> 0 | J25: =SUM(F25:I25) -> 0
A26: Insurance
A27: SOURCE and DESCRIPTION | J27: =SUM(F27:I27) -> 0
A28: SOURCE and DESCRIPTION | J28: =SUM(F28:I28) -> 0
A29: SOURCE and DESCRIPTION | J29: =SUM(F29:I29) -> 0
A30: Total Insurance | C30: =SUM(C27:C29) -> 0 | F30: =SUM(F27:F29) -> 0 | G30: =SUM(G27:G29) -> 0 | H30: =SUM(H27:H29) -> 0 | I30: =SUM(I27:I29) -> 0 | J30: =SUM(F30:I30) -> 0
A31: Fees
A32: Charges for Services (% of Exp) | J32: =SUM(F32:I32) -> 0
A33: SOURCE and DESCRIPTION | J33: =SUM(F33:I33) -> 0
A34: SOURCE and DESCRIPTION | J34: =SUM(F34:I34) -> 0
A35: Total Fees | C35: =SUM(C32:C34) -> 0 | F35: =SUM(F32:F34) -> 0 | G35: =SUM(G32:G34) -> 0 | H35: =SUM(H32:H34) -> 0 | I35: =SUM(I32:I34) -> 0 | J35: =SUM(F35:I35) -> 0
A36: Other Revenue
A37: General Fund Contribution | C37: 98000 | J37: =SUM(D37:I37) -> 0
J38: =SUM(D38:I38) -> 0
J39: =SUM(D39:I39) -> 0
A40: Total Other Revenue | C40: =SUM(C37:C39) -> 98000 | D40: 0 | E40: 0 | F40: 0 | G40: 0 | H40: 0 | I40: 0 | J40: =SUM(D40:I40) -> 0
A41: TOTALS: | C41: =ROUNDUP((C10+C15+C20+C25+C30+C35+C40),0) -> 156350 | D41: 22500 | E41: 0 | F41: 50000 | G41: 0 | H41: 0 | I41: 0 | J41: =SUM(D41:I41) -> 72500
A42: I certify that the revenue sources identified above represent accurate identifiable costs for the program/claiming entity and that the revenue sources have been properly identified and allocated. I declare under penalty of perjury that the foregoing is true and correct to the best of my knowledge, information, and belief, and that I have notice that this information is to be used for filing a claim with the Federal Government for federal funds, and the knowing misrepresentation constitutes violation of the Federal False Claims Act.
G43: Jim Morrison
A45: Signature | D45: Date | G45: Printed Name of Signer
J46: ='Invoice - Summary Page'!L28 -> Rev. 12/8/14 DHCS/SNFD

Sheet Invoice - Cost Worksheet
A1: Local Governmental Agency: | B1: ='Invoice - Summary Page'!D4 -> ABC County | F1: Program: | G1: ='Invoice - Summary Page'!J4 -> Public Health
A2: Contract Number: | B2: ='Invoice - Summary Page'!D6 -> 14-85697 | F2: Claiming Unit: | G2: ='Invoice - Summary Page'!J6 -> Outreach Program
A3: Period of Service: | B3: ='Invoice - Summary Page'!D8 -> 07/01/2016 - 09/30/2016 | F3: Invoice #: | G3: ='Invoice - Summary Page'!J8 -> 16/17-1
A4: SELECTED ITEMS OF COST | C4: Cost Pool #1 | D4: Cost Pool #2 | E4: Cost Pool #3a | F4: Cost Pool #5 | G4: Cost Pool #6
C5: SPMP | D5: Non-SPMP | E5: Non-Claimable | F5: Non-SPMP Dir. Charge | G5: Allocated/Support
C6: Costs | D6: Costs | E6: Costs | F6: Other Costs | G6: Costs
A7: SALARY COSTS | H7: TOTALS
A8: Wages/Salary: | C8: 46586.407 | D8: 35450.52 | E8: 31033.275 | G8: 51933 | H8: =SUM(C8:G8) -> 165003.202
A9: Benefits: | C9: 19965.603 | D9: 15193.08 | E9: 13299.975 | G9: 22257 | H9: =SUM(C9:G9) -> 70715.658
A10: Personal Services Contracts: | H10: =SUM(C10:G10) -> 0
A11: TOTAL Compensation for Personal Services: | C11: =SUM(C8:C10) -> 66552.01 | D11: =SUM(D8:D10) -> 50643.6 | E11: =SUM(E8:E10) -> 44333.25 | G11: =SUM(G8:G10) -> 74190 | H11: =SUM(H8:H10) -> 235718.86
A12: NON-SALARY COSTS | H12: TOTALS
A13: See attached Other Costs worksheet | C13: 5294.74 | D13: 1700 | E13: 1400 | G13: 48923.64359 | H13: =SUM(C13:G13) -> 57318.38359
H14: =SUM(C14:G14) -> 0
H15: 0
H16: 0
H17: 0
H18: 0
H19: 0
H20: 0
H21: 0
H22: 0
H23: 0
H24: 0
H25: 0
H26: 0
H27: 0
H28: 0
H29: 0
H30: 0
H31: 0
A32: Direct Charge Other Cost:
A33: Direct Charge Other Cost:
A34: Direct Charge Other Cost:
A35: Direct Charge Other Cost:
A36: Direct Charge Other Cost:
A37: Indirect Costs | H37: =SUM(C37:G37) -> 0
A38: TOTAL Non-Salary Costs: | C38: =SUM(C13:C37) -> 5294.74 | D38: =SUM(D13:D37) -> 1700 | E38: =SUM(E13:E37) -> 1400 | F38: =SUM(F13:F37) -> 0 | G38: =SUM(G13:G37) -> 48923.64359 | H38: =SUM(C38:G38) -> 57318.38359
A39: I certify that the costs identified above represent accurate identifiable costs for the program/claiming entity and that the costs have been properly identified and allocated. I declare under penalty of perjury that the foregoing is true and correct to the best of my knowledge, information, and belief, and that I have notice that this information is to be used for filing a claim with the Federal Government for federal funds, and the knowing misrepresentation constitutes violation of the Federal False Claims Act.
G40: Jim Morrison
A41: Signature | D41: Date | G41: Type or Print Name of Signer
H42: ='Invoice - Summary Page'!L28 -> Rev. 12/8/14 DHCS/SNFD

Sheet Invoice - Direct Charge Costs
B1: Local Governmental Agency: | D1: ='Invoice - Summary Page'!$D$4 -> ABC County | G1: Program: | I1: ='Invoice - Summary Page'!$J$4 -> Public Health
B2: Contract Number: | D2: ='Invoice - Summary Page'!$D$6 -> 14-85697 | G2: Claiming Unit: | I2: ='Invoice - Summary Page'!$J$6 -> Outreach Program
B3: Period of Service: | D3: ='Invoice - Summary Page'!$D$8 -> 07/01/2016 - 09/30/2016 | G3: Invoice #: | I3: ='Invoice - Summary Page'!$J$8 -> 16/17-1
A4: ENHANCED (SPMP) MAA STAFF COSTS
A5: Staff Member | B5: Classification | C5: Code | D5: Description | E5: Medi-Cal % | F5: Activity % Results | G5: Salary Costs | H5: MAA Claimable Portion | I5: Non Claimable Portion | J5: Benefits Costs | K5: MAA Claimable Portion | L5: Non Claimable Portion | M5: Non-Salary Costs | N5: MAA Claimable Portion | O5: Non Claimable Portion
D6: =LOOKUP(C6,ECodes,'Enhanced MAA Codes'!B2:B3) ->  | E6: =LOOKUP('Invoice - Direct Charge Costs'!C6,NECodes,'Non-Enhanced MAA Codes'!D2:D11) ->  | H6: =IF(C6=0,0,(G6*F6)*E6) -> 0 | I6: =G6-H6 -> 0 | K6: =IF(C6=0,0,(J6*F6)*E6) -> 0 | L6: =J6-K6 -> 0 | M6: 0 | N6: =IF(C6=0,0,(M6*F6)*E6) -> 0 | O6: =M6-N6 -> 0
D7: =LOOKUP(C7,ECodes,'Enhanced MAA Codes'!B2:B3) ->  | E7: =LOOKUP('Invoice - Direct Charge Costs'!C7,NECodes,'Non-Enhanced MAA Codes'!D2:D11) ->  | H7: =IF(C7=0,0,(G7*F7)*E7) -> 0 | I7: =G7-H7 -> 0 | K7: =IF(C7=0,0,(J7*F7)*E7) -> 0 | L7: =J7-K7 -> 0 | M7: 0 | N7: =IF(C7=0,0,(M7*F7)*E7) -> 0 | O7: =M7-N7 -> 0
D8: =LOOKUP(C8,ECodes,'Enhanced MAA Codes'!B2:B3) ->  | E8: =LOOKUP('Invoice - Direct Charge Costs'!C8,NECodes,'Non-Enhanced MAA Codes'!D2:D11) ->  | G8: 0 | H8: =IF(C8=0,0,(G8*F8)*E8) -> 0 | I8: =G8-H8 -> 0 | J8: 0 | K8: =IF(C8=0,0,(J8*F8)*E8) -> 0 | L8: =J8-K8 -> 0 | M8: 0 | N8: =IF(C8=0,0,(M8*F8)*E8) -> 0 | O8: =M8-N8 -> 0
D9: =LOOKUP(C9,ECodes,'Enhanced MAA Codes'!B2:B3) ->  | E9: =LOOKUP('Invoice - Direct Charge Costs'!C9,NECodes,'Non-Enhanced MAA Codes'!D2:D11) ->  | G9: 0 | H9: =IF(C9=0,0,(G9*F9)*E9) -> 0 | I9: =G9-H9 -> 0 | J9: 0 | K9: =IF(C9=0,0,(J9*F9)*E9) -> 0 | L9: =J9-K9 -> 0 | M9: 0 | N9: =IF(C9=0,0,(M9*F9)*E9) -> 0 | O9: =M9-N9 -> 0
D10: =LOOKUP(C10,ECodes,'Enhanced MAA Codes'!B2:B3) ->  | E10: =LOOKUP('Invoice - Direct Charge Costs'!C10,NECodes,'Non-Enhanced MAA Codes'!D2:D11) ->  | G10: 0 | H10: =IF(C10=0,0,(G10*F10)*E10) -> 0 | I10: =G10-H10 -> 0 | J10: 0 | K10: =IF(C10=0,0,(J10*F10)*E10) -> 0 | L10: =J10-K10 -> 0 | M10: 0 | N10: =IF(C10=0,0,(M10*F10)*E10) -> 0 | O10: =M10-N10 -> 0
A11: TOTALS | G11: =SUM(G6:G10) -> 0 | H11: 0 | I11: 0 | J11: 0 | K11: 0 | L11: 0 | M11: 0 | N11: =SUM(N6:N10) -> 0 | O11: 0
A12: NON-ENHANCED MAA STAFF COSTS
A13: Staff Member | B13: Classification | C13: Code | D13: Description | E13: Medi-Cal % | F13: Activity % Results | G13: Salary Costs | H13: MAA Claimable Portion | I13: Non Claimable Portion | J13: Benefits Costs | K13: MAA Claimable Portion | L13: Non Claimable Portion | M13: Non-Salary Costs | N13: MAA Claimable Portion | O13: Non Claimable Portion
A14: Jim Morrison | B14: MAA/TCM Coordinator | C14: 19 | D14: =LOOKUP('Invoice - Direct Charge Costs'!C14,NECodes,'Non-Enhanced MAA Codes'!B2:B11) -> MAA/TCM Coordination and Claims Administration | E14: =LOOKUP('Invoice - Direct Charge Costs'!C14,NECodes,'Non-Enhanced MAA Codes'!D2:D11) -> 1 | F14: 1 | G14: 7691.355 | H14: =IF(C14=0,0,(G14*F14)*E14) -> 7691.355 | I14: =G14-H14 -> 0 | J14: 3296.295 | K14: =IF(C14=0,0,(J14*F14)*E14) -> 3296.295 | L14: =J14-K14 -> 0 | M14: =4431.30390470088-1000 -> 3431.303905 | N14: =IF(C14=0,0,(M14*F14)*E14) -> 3431.303905 | O14: =M14-N14 -> 0
A15: Stevie Nicks | B15: Accountant | C15: 19 | D15: =LOOKUP('Invoice - Direct Charge Costs'!C15,NECodes,'Non-Enhanced MAA Codes'!B2:B11) -> MAA/TCM Coordination and Claims Administration | E15: =LOOKUP('Invoice - Direct Charge Costs'!C15,NECodes,'Non-Enhanced MAA Codes'!D2:D11) -> 1 | F15: 1 | G15: 3024.763 | H15: 3024.763 | I15: =G15-H15 -> 0 | J15: 1296.327 | K15: =IF(C15=0,0,(J15*F15)*E15) -> 1296.327 | L15: =J15-K15 -> 0 | N15: =IF(C15=0,0,(M15*F15)*E15) -> 0 | O15: =M15-N15 -> 0
D16: =LOOKUP('Invoice - Direct Charge Costs'!C16,NECodes,'Non-Enhanced MAA Codes'!B2:B11) ->  | E16: =LOOKUP('Invoice - Direct Charge Costs'!C16,NECodes,'Non-Enhanced MAA Codes'!D2:D11) ->  | H16: 0 | I16: 0 | K16: 0 | L16: 0 | N16: =IF(C16=0,0,(M16*F16)*E16) -> 0 | O16: 0
D17: =LOOKUP('Invoice - Direct Charge Costs'!C17,NECodes,'Non-Enhanced MAA Codes'!B2:B11) ->  | E17: =LOOKUP('Invoice - Direct Charge Costs'!C17,NECodes,'Non-Enhanced MAA Codes'!D2:D11) ->  | H17: 0 | I17: 0 | K17: 0 | L17: 0 | N17: 0 | O17: 0
D18: =LOOKUP('Invoice - Direct Charge Costs'!C18,NECodes,'Non-Enhanced MAA Codes'!B2:B11) ->  | E18: =LOOKUP('Invoice - Direct Charge Costs'!C18,NECodes,'Non-Enhanced MAA Codes'!D2:D11) ->  | H18: 0 | I18: 0 | K18: 0 | L18: 0 | N18: 0 | O18: 0
D19: =LOOKUP('Invoice - Direct Charge Costs'!C19,NECodes,'Non-Enhanced MAA Codes'!B2:B11) ->  | E19: =LOOKUP('Invoice - Direct Charge Costs'!C19,NECodes,'Non-Enhanced MAA Codes'!D2:D11) ->  | H19: 0 | I19: 0 | K19: 0 | L19: 0 | N19: 0 | O19: 0
D20: =LOOKUP('Invoice - Direct Charge Costs'!C20,NECodes,'Non-Enhanced MAA Codes'!B2:B11) ->  | E20: =LOOKUP('Invoice - Direct Charge Costs'!C20,NECodes,'Non-Enhanced MAA Codes'!D2:D11) ->  | H20: 0 | I20: 0 | K20: 0 | L20: 0 | N20: 0 | O20: 0
D21: =LOOKUP('Invoice - Direct Charge Costs'!C21,NECodes,'Non-Enhanced MAA Codes'!B2:B11) ->  | E21: =LOOKUP('Invoice - Direct Charge Costs'!C21,NECodes,'Non-Enhanced MAA Codes'!D2:D11) ->  | H21: 0 | I21: 0 | K21: 0 | L21: 0 | N21: 0 | O21: 0
D22: =LOOKUP('Invoice - Direct Charge Costs'!C22,NECodes,'Non-Enhanced MAA Codes'!B2:B11) ->  | E22: =LOOKUP('Invoice - Direct Charge Costs'!C22,NECodes,'Non-Enhanced MAA Codes'!D2:D11) ->  | H22: 0 | I22: 0 | K22: 0 | L22: 0 | N22: 0 | O22: 0
D23: =LOOKUP('Invoice - Direct Charge Costs'!C23,NECodes,'Non-Enhanced MAA Codes'!B2:B11) ->  | E23: =LOOKUP('Invoice - Direct Charge Costs'!C23,NECodes,'Non-Enhanced MAA Codes'!D2:D11) ->  | H23: 0 | I23: 0 | K23: 0 | L23: 0 | N23: 0 | O23: 0
A24: TOTALS | G24: =SUM(G14:G23) -> 10716.118 | H24: 10716.118 | I24: 0 | J24: 4592.622 | K24: 4592.622 | L24: 0 | M24: 3431.303905 | N24: 3431.303905 | O24: 0
A25: NON-ENHANCED MAA PERSONAL SERVICES CBO/CONTRACTOR COSTS
A26: CBO/Contractor | B26: Expense Detail | C26: Code | D26: Description | E26: Medi-Cal % | G26: Pers. Svcs. Contract Costs | H26: MAA Claimable Portion | I26: Non Claimable Portion
A27: MAA consultant | B27: MAA Coordination | C27: 19 | D27: =LOOKUP('Invoice - Direct Charge Costs'!C27,NECodes,'Non-Enhanced MAA Codes'!B2:B11) -> MAA/TCM Coordination and Claims Administration | E27: =LOOKUP('Invoice - Direct Charge Costs'!C27,NECodes,'Non-Enhanced MAA Codes'!D2:D11) -> 1 | G27: 600 | H27: =IF(C27=0,0,(G27*E27)) -> 600 | I27: =G27-H27 -> 0
A28: TractivityPro | B28: Time Survey database | C28: 19 | D28: =LOOKUP('Invoice - Direct Charge Costs'!C28,NECodes,'Non-Enhanced MAA Codes'!B2:B11) -> MAA/TCM Coordination and Claims Administration | E28: =LOOKUP('Invoice - Direct Charge Costs'!C28,NECodes,'Non-Enhanced MAA Codes'!D2:D11) -> 1 | G28: 400 | H28: =IF(C28=0,0,(G28*E28)) -> 400 | I28: =G28-H28 -> 0
D29: =LOOKUP('Invoice - Direct Charge Costs'!C29,NECodes,'Non-Enhanced MAA Codes'!B2:B11) ->  | E29: =LOOKUP('Invoice - Direct Charge Costs'!C29,NECodes,'Non-Enhanced MAA Codes'!D2:D11) ->  | H29: =IF(C29=0,0,(G29*E29)) -> 0 | I29: =G29-H29 -> 0
D30: =LOOKUP('Invoice - Direct Charge Costs'!C30,NECodes,'Non-Enhanced MAA Codes'!B2:B11) ->  | E30: =LOOKUP('Invoice - Direct Charge Costs'!C30,NECodes,'Non-Enhanced MAA Codes'!D2:D11) ->  | H30: =IF(C30=0,0,(G30*E30)) -> 0 | I30: =G30-H30 -> 0
D31: =LOOKUP('Invoice - Direct Charge Costs'!C31,NECodes,'Non-Enhanced MAA Codes'!B2:B11) ->  | E31: =LOOKUP('Invoice - Direct Charge Costs'!C31,NECodes,'Non-Enhanced MAA Codes'!D2:D11) ->  | H31: =IF(C31=0,0,(G31*E31)) -> 0 | I31: =G31-H31 -> 0
A32: TOTALS | G32: =SUM(G27:G31) -> 1000 | H32: =SUM(H27:H31) -> 1000 | I32: =SUM(I27:I31) -> 0
A33: NON-ENHANCED MAA TRANSPORTATION COSTS
A34: Contractor | B34: Expense Detail | C34: Code | D34: Description | E34: Medi-Cal % | G34: MAA Transportation Costs | H34: MAA Claimable Portion | I34: Non Claimable Portion
D35: =LOOKUP('Invoice - Direct Charge Costs'!C35,NECodes,'Non-Enhanced MAA Codes'!B2:B11) ->  | E35: =LOOKUP('Invoice - Direct Charge Costs'!C35,NECodes,'Non-Enhanced MAA Codes'!D2:D11) ->  | H35: =IF(C35=0,0,(G35*E35)) -> 0 | I35: =G35-H35 -> 0
D36: =LOOKUP('Invoice - Direct Charge Costs'!C36,NECodes,'Non-Enhanced MAA Codes'!B2:B11) ->  | E36: =LOOKUP('Invoice - Direct Charge Costs'!C36,NECodes,'Non-Enhanced MAA Codes'!D2:D11) ->  | H36: =IF(C36=0,0,(G36*E36)) -> 0 | I36: =G36-H36 -> 0
D37: =LOOKUP('Invoice - Direct Charge Costs'!C37,NECodes,'Non-Enhanced MAA Codes'!B2:B11) ->  | E37: =LOOKUP('Invoice - Direct Charge Costs'!C37,NECodes,'Non-Enhanced MAA Codes'!D2:D11) ->  | H37: =IF(C37=0,0,(G37*E37)) -> 0 | I37: =G37-H37 -> 0
A38: TOTALS | G38: =SUM(G35:G37) -> 0 | H38: =SUM(H35:H37) -> 0 | I38: =SUM(I35:I37) -> 0
A39: NON-ENHANCED MAA DIRECT CHARGE OTHER COSTS
D40: Description | E40: Medi-Cal % | G40: MAA Other Costs | H40: MAA Claimable Portion
D41: Cost Pool#5 Direct Charge Other Costs Total | E41: 1 | G41: ='Invoice - Cost Worksheet'!F38 -> 0 | H41: =G41 -> 0
A42: I certify that the direct charges identified above represent accurate identifiable costs for the program/claiming entity and that the direct charges have been properly identified and allocated. I declare under penalty of perjury that the foregoing is true and correct to the best of my knowledge, information, and belief, and that I have notice that this information is to be used for filing a claim with the Federal Government for federal funds, and the knowing misrepresentation constitutes violation of the Federal False Claims Act.
J43: Jim Morrison
A44: Signature | F44: Date | J44: Type or Print Name of Signer
O45: ='Invoice - Summary Page'!L28 -> Rev. 12/8/14 DHCS/SNFD

Sheet Invoice - Claim Calculation
A1: Local Governmental Agency: | B1: ='Invoice - Summary Page'!$D$4 -> ABC County | E1: Program: | F1: ='Invoice - Summary Page'!$J$4 -> Public Health
A2: Contract Number: | B2: ='Invoice - Summary Page'!$D$6 -> 14-85697 | E2: Claiming Unit: | F2: ='Invoice - Summary Page'!$J$6 -> Outreach Program
A3: Period of Service: | B3: ='Invoice - Summary Page'!$D$8 -> 07/01/2016 - 09/30/2016 | E3: Invoice #: | F3: ='Invoice - Summary Page'!$J$8 -> 16/17-1
A5: COSTS: | B5: Cost Pool #1 | C5: Cost Pool #2 | D5: Cost Pool #3a | E5: Cost Pool #3b | F5: Cost Pool #4 | G5: Cost Pool #5 | H5: Cost Pool #6
B6: SPMP | C6: Non-SPMP | D6: Non-Claimable | E6: Non-Claimable | F6: SPMP | G6: Non-SPMP | H6: Allocated/Support
B7: Costs | C7: Costs | D7: Costs | E7: Dir. Charge Costs | F7: Dir. Charge Costs | G7: Dir. Charge Costs | H7: Costs
A8: Salary: | B8: ='Invoice - Cost Worksheet'!C8 -> 46586.407 | C8: ='Invoice - Cost Worksheet'!D8 -> 35450.52 | D8: ='Invoice - Cost Worksheet'!E8 -> 31033.275 | E8: ='Invoice - Direct Charge Costs'!I11+'Invoice - Direct Charge Costs'!I24 -> 0 | F8: ='Invoice - Direct Charge Costs'!H11 -> 0 | G8: ='Invoice - Direct Charge Costs'!H24 -> 10716.118 | H8: ='Invoice - Cost Worksheet'!G8 -> 51933
A9: Benefits: | B9: ='Invoice - Cost Worksheet'!C9 -> 19965.603 | C9: ='Invoice - Cost Worksheet'!D9 -> 15193.08 | D9: ='Invoice - Cost Worksheet'!E9 -> 13299.975 | E9: ='Invoice - Direct Charge Costs'!L11+'Invoice - Direct Charge Costs'!L24 -> 0 | F9: ='Invoice - Direct Charge Costs'!K11 -> 0 | G9: ='Invoice - Direct Charge Costs'!K24 -> 4592.622 | H9: ='Invoice - Cost Worksheet'!G9 -> 22257
A10: Salary + Benefits SUBTOTAL: | B10: =B8+B9 -> 66552.01 | C10: 50643.6 | D10: 44333.25 | E10: =E8+E9 -> 0 | F10: 0 | G10: =G8+G9 -> 15308.74 | H10: 74190
A11: Personal Service Contracts | C11: ='Invoice - Cost Worksheet'!D10 -> 0 | D11: ='Invoice - Cost Worksheet'!E10 -> 0 | E11: ='Invoice - Direct Charge Costs'!I32 -> 0 | G11: ='Invoice - Direct Charge Costs'!H32 -> 1000
A12: All Personnel Costs SUBTOTAL: | B12: =B10 -> 66552.01 | C12: =SUM(C10:C11) -> 50643.6 | D12: =SUM(D10:D11) -> 44333.25 | E12: =SUM(E10:E11) -> 0 | F12: =F10 -> 0 | G12: =SUM(G10:G11) -> 16308.74
A13: Personnel Costs Distribution Percentage: | B13: =IF(B12=0,0,(B12/(SUM(B12:G12)))) -> 0.3742291281 | C13: =IF(C12=0,0,(C12/(SUM(B12:G12)))) -> 0.2847744234 | D13: =IF(D12=0,0,(D12/(SUM(B12:G12)))) -> 0.2492906449 | E13: =IF(E12=0,0,(E12/(SUM(B12:G12)))) -> 0 | F13: =IF(F12=0,0,(F12/(SUM(B12:G12)))) -> 0 | G13: =IF(G12=0,0,(G12/(SUM(B12:G12)))) -> 0.0917058035
A14: MAA Transportation Costs: | E14: ='Invoice - Direct Charge Costs'!I38 -> 0 | G14: ='Invoice - Direct Charge Costs'!H38 -> 0
A15: Non-Salary Costs: | B15: ='Invoice - Cost Worksheet'!C38 -> 5294.74 | C15: ='Invoice - Cost Worksheet'!D38 -> 1700 | D15: ='Invoice - Cost Worksheet'!E38 -> 1400 | E15: ='Invoice - Direct Charge Costs'!O11+'Invoice - Direct Charge Costs'!O24 -> 0 | F15: ='Invoice - Direct Charge Costs'!N11 -> 0 | G15: ='Invoice - Direct Charge Costs'!N24 -> 3431.303905 | H15: ='Invoice - Cost Worksheet'!G38 -> 48923.64359
A16: Other Costs: | G16: ='Invoice - Direct Charge Costs'!H41 -> 0
A17: CP #6 Allocated/Support Costs to be Distributed TOTAL: | H17: =H10+H15 -> 123113.6436
A18: Distribution of CP #6 Allocated/Support Costs: | B18: =ROUND((SUM(H17*B13)),0) -> 46073 | C18: =ROUND((SUM(H17*C13)),0) -> 35060 | D18: =ROUND((SUM(H17*D13)),0) -> 30691 | E18: =ROUND((SUM(H17*E13)),0) -> 0 | F18: =ROUND((SUM(H17*F13)),0) -> 0 | G18: =ROUND((SUM(H17*G13)),0) -> 11290
A19: Non-Salary Costs SUBTOTAL: | B19: =B15+B18 -> 51367.74 | C19: =C15+C18 -> 36760 | D19: =D15+D18 -> 32091 | E19: =(E14+E15+E18) -> 0 | F19: =F15+F18 -> 0 | G19: =(G14+G15+G16+G18) -> 14721.3039
A20: CP #3b All Personnel + Non-Salary Costs TOTAL: | D20: =E12+E19 -> 0
A21: TOTAL COST: | B21: =ROUND((B12+B19),0) -> 117920 | C21: =ROUND((C12+C19),0) -> 87404 | D21: =ROUND((D12+D19+D20),0) -> 76424 | F21: =ROUND(F12+F19,0) -> 0 | G21: =ROUND(G12+G19,0) -> 31030
A22: PERCENTAGE OF TOTAL COST: | B22: =IF(B21=0,0,(B21/(SUM(B21:G21)))) -> 0.3770086131 | C22: =IF(C21=0,0,(C21/(SUM(B21:G21)))) -> 0.2794442064 | D22: =IF(D21=0,0,(D21/(SUM(B21:G21)))) -> 0.2443394356 | F22: =IF(F21=0,0,(F21/(SUM(B21:G21)))) -> 0 | G22: =IF(G21=0,0,(G21/(SUM(B21:G21)))) -> 0.09920774479
A24: FUNDING/REVENUE: | B24: Cost Pool #1 | C24: Cost Pool #2 | D24: Cost Pool #3 | E24: Cost Pool #4 | F24: Cost Pool #5 | G24: Cost Pool #6
B25: SPMP | C25: Non-SPMP | D25: Non-Claimable | E25: SPMP Dir. Chg. | F25: Non-SPMP Dir. Chg. | G25: Allocated/Support
B26: Funding/Revenue | C26: Funding/Revenue | D26: Funding/Revenue | E26: Funding/Revenue | F26: Funding/Revenue | G26: Funding/Revenue
A27: Funding/Revenue: | B27: ='Invoice - Revenue Worksheet'!D41 -> 22500 | C27: ='Invoice - Revenue Worksheet'!E41 -> 0 | D27: ='Invoice - Revenue Worksheet'!F41 -> 50000 | E27: ='Invoice - Revenue Worksheet'!G41 -> 0 | F27: ='Invoice - Revenue Worksheet'!H41 -> 0 | G27: ='Invoice - Revenue Worksheet'!I41 -> 0
A28: Distribution of CP #6 Funding/Revenue: | B28: =(G27*B22) -> 0 | C28: =(G27*C22) -> 0 | D28: =(G27*D22) -> 0 | E28: =(G27*F22) -> 0 | F28: =(G27*G22) -> 0
A29: Funding/Revenue TOTAL: | B29: =SUM(B27:B28) -> 22500 | C29: =SUM(C27:C28) -> 0 | D29: =SUM(D27:D28) -> 50000 | E29: =SUM(E27:E28) -> 0 | F29: =SUM(F27:F28) -> 0
A30: Non-Claimable Activity Percentage: | B30: =IF(E64=0,0,E64) -> 0.3366068405 | C30: =IF(G64=0,0,G64) -> 0.4639455782
A31: Non-Claimable Activity Cost: | B31: =IF(B21=0,0,IF(C67=0,0,((B21*B30)))) -> 39692.67863 | C31: =IF(C21=0,0,IF(D67=0,0,((C21*C30)))) -> 40550.69932 | D31: =D21 -> 76424
A32: CP #3 Remaining Non-Claimable Funding/Revenue: | D32: =IF(D29-D31>0,D29-D31,0) -> 0
A33: Non-Claimable Activity Distribution Percentage: | B33: =IF(B31+C31=0,0,(B31/(B31+C31))) -> 0.4946536355 | C33: =IF(B31+C31=0,0,(C31/(B31+C31))) -> 0.5053463645
A34: Distribution of CP #3 Reman. Non-Claim. Funding/Revenue: | B34: =(D32*B33) -> 0 | C34: =(D32*C33) -> 0
A35: Adjusted Remaining Funding/Revenue: | B35: =IF(B22=0,B29,IF(B34<B31,B29,IF(B34>B31,B29+B34-B31,IF(B34=B31,B29,0)))) -> 22500 | C35: =IF(C22=0,C29,IF(C34<C31,C29,IF(C34>C31,C29+C34-C31,IF(C34=C31,C29,0)))) -> 0
A36: Remaining Funding/Revenue Distributed to Personnel Svcs: | B36: =IF(B21=0,0,(B35*(B12/B21))) -> 12698.61113 | C36: =IF(C21=0,0,(C35*C12/C21)) -> 0
A37: Remaining Fund/Rev Distributed to Non-Salary Costs: | B37: =IF(B21=0,0,(B35*(B19/B21))) -> 9801.341164 | C37: =IF(C21=0,0,(C35*C19/C21)) -> 0
A38: Adjusted Remaining Personnel Services Costs | B38: =IF(B12-B36=0,0,(B12-B36)) -> 53853.39887 | C38: =IF(C12-C36=0,0,(C12-C36)) -> 50643.6
A39: Adjusted Remaining Non-Salary Costs | B39: =IF(B19-B37=0,0,(B19-B37)) -> 41566.39884 | C39: =IF(C19-C37=0,0,(C19-C37)) -> 36760
A40: TOTAL ADJUSTED COST | B40: =B38+B39 -> 95419.7977 | C40: =C38+C39 -> 87403.6 | E40: =IF(F21-E29=0,0,(F21-E29)) -> 0 | F40: =IF(G21-F29=0,0,(G21-F29)) -> 31030
A42: I certify that the information above represents accurate and identifiable data for the program/claiming entity. I declare under penalty of perjury that the foregoing is true and correct to the best of my knowledge, information, and belief, and that I have notice that this information is to be used for filing a claim with the Federal Government for federal funds, and the knowing misrepresentation constitutes violation of the Federal False Claims Act.
E43: Jim Morrison
A44: Signature | C44: Date | E44: Type or Print Name of Signer
H45: ='Invoice - Summary Page'!L28 -> Rev. 12/8/14 DHCS/SNFD
A46: Local Governmental Agency: | B46: ='Invoice - Summary Page'!$D$4 -> ABC County | E46: Program: | F46: ='Invoice - Summary Page'!$J$4 -> Public Health
A47: Contract Number: | B47: ='Invoice - Summary Page'!$D$6 -> 14-85697 | E47: Claiming Unit: | F47: ='Invoice - Summary Page'!$J$6 -> Outreach Program
A48: Period of Service: | B48: ='Invoice - Summary Page'!$D$8 -> 07/01/2016 - 09/30/2016 | E48: Invoice #: | F48: ='Invoice - Summary Page'!$J$8 -> 16/17-1
A50: ACTIVITIES: | B50: MEDI-CAL % | C50: ACTIVITY RESULTS PERCENTAGES | E50: REALLOCATED SPMP % | F50: SPMP Medi-Cal % | G50: REALLOCATED Non-SPMP % | H50: Non-SPMP Medi-Cal %
C51: SPMP | D51: NON-SPMP
A52: CODE 4: Medi-Cal Outreach | B52: 1 | C52: ='Invoice - T.S. Results Summary'!I9 -> 0.08247914184 | D52: ='Invoice - T.S. Results Summary'!K9 -> 0 | E52: =IF(C52=0,0,C52/SUM(C52:C64)) -> 0.1171689807 | F52: =E52*B52 -> 0.1171689807 | G52: =IF(D52=0,0,D52/SUM(D52:D64)) -> 0 | H52: =G52*B52 -> 0
A53: CODE 6: Referral, Coordination, and Monitoring of Medi-Cal Services | B53: ='Invoice - T.S. Results Summary'!L11 -> 0.4275 | C53: ='Invoice - T.S. Results Summary'!I11 -> 0.1768772348 | D53: ='Invoice - T.S. Results Summary'!K11 -> 0.01865622962 | E53: =IF(C53=0,0,C53/SUM(C52:C64)) -> 0.251269895 | F53: =E53*B53 -> 0.1074178801 | G53: =IF(D53=0,0,D53/SUM(D52:D64)) -> 0.09727891156 | H53: =G53*B53 -> 0.04158673469
A54: CODE 8: Facilitating Med-Cal Application | B54: 1 | C54: ='Invoice - T.S. Results Summary'!I13 -> 0 | D54: ='Invoice - T.S. Results Summary'!K13 -> 0 | E54: =IF(C54=0,0,C54/SUM(C52:C64)) -> 0 | F54: 0 | G54: =IF(D54=0,0,D54/SUM(D52:D64)) -> 0 | H54: 0
A55: CODE 10: Arranging and/or Providing Non-Emergency, Non-Medical Transportation to a Medi-Cal Covered Service | B55: ='Invoice - T.S. Results Summary'!L15 -> 0 | C55: ='Invoice - T.S. Results Summary'!I15 -> 0 | D55: ='Invoice - T.S. Results Summary'!K15 -> 0 | E55: =IF(C55=0,0,C55/SUM(C52:C64)) -> 0 | F55: 0 | G55: =IF(D55=0,0,D55/SUM(D52:D64)) -> 0 | H55: 0
A56: CODE 12: Contract Administration (A) for Medi-Cal Services specific for Medi-Cal populations | B56: 1 | C56: ='Invoice - T.S. Results Summary'!I17 -> 0 | D56: ='Invoice - T.S. Results Summary'!K17 -> 0 | E56: =IF(C56=0,0,C56/SUM(C52:C64)) -> 0 | F56: 0 | G56: =IF(D56=0,0,D56/SUM(D52:D64)) -> 0 | H56: 0
A57: CODE 13: Contract Administration (B) for Medi-Cal Services specific for Medi-Cal and Non Medi-Cal populations | B57: ='Invoice - T.S. Results Summary'!L18 -> 0.4275 | C57: ='Invoice - T.S. Results Summary'!I18 -> 0 | D57: ='Invoice - T.S. Results Summary'!K18 -> 0.03065883888 | E57: =IF(C57=0,0,C57/SUM(C52:C64)) -> 0 | F57: 0 | G57: =IF(D57=0,0,D57/SUM(D52:D64)) -> 0.1598639456 | H57: 0.06834183673
A58: CODE 15: PP & PD (A) (Non-enhanced) for Medi-Cal Services for Medi-Cal clients | B58: 1 | C58: ='Invoice - T.S. Results Summary'!I20 -> 0 | D58: ='Invoice - T.S. Results Summary'!K20 -> 0 | E58: =IF(C58=0,0,C58/SUM(C52:C64)) -> 0 | F58: 0 | G58: =IF(D58=0,0,D58/SUM(D52:D64)) -> 0 | H58: 0
A59: CODE 16: PP & PD (SPMP) (A) (Enhanced) for Medi-Cal Services for Medi-Cal clients | B59: 1 | C59: ='Invoice - T.S. Results Summary'!I21 -> 0 | E59: =IF(C59=0,0,C59/SUM(C52:C64)) -> 0 | F59: =E59*B59 -> 0
A60: CODE 17: PP & PD (B) (Non-enhanced) for Medi-Cal Services for Medi-Cal and Non Medi-Cal clients | B60: ='Invoice - T.S. Results Summary'!L22 -> 0.4275 | C60: ='Invoice - T.S. Results Summary'!I22 -> 0.01573301549 | D60: ='Invoice - T.S. Results Summary'!K22 -> 0.03157208089 | E60: =IF(C60=0,0,C60/SUM(C52:C64)) -> 0.02235015239 | F60: =E60*B60 -> 0.009554690146 | G60: =IF(D60=0,0,D60/SUM(D52:D64)) -> 0.1646258503 | H60: =G60*B60 -> 0.07037755102
A61: CODE 18: PP & PD (SPMP) (B) (Enhanced) for Medi-Cal Services for Medi-Cal and Non Medi-Cal clients | B61: ='Invoice - T.S. Results Summary'!L23 -> 0.4275 | C61: ='Invoice - T.S. Results Summary'!I23 -> 0.1771156138 | E61: =IF(C61=0,0,C61/SUM(C52:C64)) -> 0.2516085337 | F61: =E61*B61 -> 0.1075626482
A62: CODE 19: MAA/TCM Coordination and Claims Administration | B62: 1 | C62: ='Invoice - T.S. Results Summary'!I24 -> 0 | D62: ='Invoice - T.S. Results Summary'!K24 -> 0.01709067189 | E62: =IF(C62=0,0,C62/SUM(C52:C64)) -> 0 | F62: =E62*B62 -> 0 | G62: =IF(D62=0,0,D62/SUM(D52:D64)) -> 0.08911564626 | H62: =G62*B62 -> 0.08911564626
A63: CODE 20: MAA/TCM Implementation Training | B63: 1 | C63: ='Invoice - T.S. Results Summary'!I25 -> 0.0147794994 | D63: ='Invoice - T.S. Results Summary'!K25 -> 0.004827136334 | E63: =IF(C63=0,0,C63/SUM(C52:C64)) -> 0.0209955977 | F63: =E63*B63 -> 0.0209955977 | G63: =IF(D63=0,0,D63/SUM(D52:D64)) -> 0.02517006803 | H63: =G63*B63 -> 0.02517006803
A64: CODES 1, 2, 3, 5, 7, 9, 11, 14, 23-32: All NON-CLAIMABLE Activities | C64: ='Invoice - T.S. Results Summary'!I40 -> 0.2369487485 | D64: ='Invoice - T.S. Results Summary'!K40 -> 0.08897586432 | E64: =IF(C64=0,0,C64/SUM(C52:C64)) -> 0.3366068405 | G64: =IF(D64=0,0,D64/SUM(D52:D64)) -> 0.4639455782
A65: CODE 21: General Administration | C65: ='Invoice - T.S. Results Summary'!I26 -> 0.1666269368 | D65: ='Invoice - T.S. Results Summary'!K26 -> 0.4983692107
A66: CODE 22: Paid Time Off (PTO) | C66: ='Invoice - T.S. Results Summary'!I27 -> 0.1294398093 | D66: ='Invoice - T.S. Results Summary'!K27 -> 0.3098499674
A67: TOTAL | C67: =SUM(C52:C66) -> 1 | D67: 1 | E67: 1 | F67: =SUM(F52:F66) -> 0.3626997968 | G67: =SUM(G52:G66) -> 1 | H67: 0.2945918367
A69: CLAIM CALCULATION: | B69: CP1 | C69: CP2 | D69: CP4 | E69: CP5 | F69: FFP @ 50% | G69: FFP @ 75%
A70: Non-Enhanced Federal Share | B70: =B40*(F67-(F59+F61)) -> 24345.13511 | C70: =C40*H67 -> 25748.38706 | E70: =F40 -> 31030 | F70: =SUM(B70:E70)*0.5 -> 40561.76109
A71: Enhanced Federal Share | B71: =B40*(F59+F61) -> 10263.60613 | D71: =E40 -> 0 | G71: =SUM(B71:E71)*0.75 -> 7697.704595
A73: TOTAL FEDERAL SHARE: | B73: =F70+G71 -> 48259.46568 | D73: Total Inv. Amt. | E73: 50% Inv. Portion | F73: 75% Inv. Portion
A74: CPE Eligibility: | B74: =IF(B73<(0.5*'Invoice - Revenue Worksheet'!C41+0.5),"COMPLIANT","NON-COMPLIANT") -> COMPLIANT | D74: =B75 -> 48259.46568 | E74: =D74*(F70/B73) -> 40561.76109 | F74: =D74*(G71/B73) -> 7697.704595
A75: CPE Compliant Federal Share: | B75: =IF(B74="NON-COMPLIANT",0.5*'Invoice - Revenue Worksheet'!C41,B73) -> 48259.46568
A77: I certify that the information above represents accurate and identifiable data for the program/claiming entity. I declare under penalty of perjury that the foregoing is true and correct to the best of my knowledge, information, and belief, and that I have notice that this information is to be used for filing a claim with the Federal Government for federal funds, and the knowing misrepresentation constitutes violation of the Federal False Claims Act.
E78: Jim Morrison
A79: Signature | C79: Date | E79: Type or Print Name of Signer
H80: ='Invoice - Summary Page'!L28 -> Rev. 12/8/14 DHCS/SNFD

Sheet Invoice - 20% Variance
A1: (delete this text) *PRINT ON LGA LETTER HEAD* (delete this text)
B2: Date: | E2: Date
B4: To: | E4: The Department of Health Care Services
E5: County Based Medi-Cal Administrative Activities Unit
B7: From: | E7: ='Invoice - Summary Page'!D4 -> ABC County
E8: ='Invoice - Summary Page'!J6 -> Outreach Program
B10: Subject: | E10: CMAA Program Invoice Percentage Variance Documentation for | L10: ='Invoice - Summary Page'!D8 -> 07/01/2016 - 09/30/2016
B13: The following information represents the CMAA Program invoice variance data for the LGA/Claiming Unit and Period of Service notated above.
A15: Prior Year Corresponding Quarter Variance Data | J15: Prior Quarter Variance Data
A16: PY Corresponding Quarter Invoice Amount: | G16: 57527 | J16: Prior Quarter Invoice Amount: | M16: 79850
A17: Current Quarter Invoice Amount: | G17: ='Invoice - Claim Calculation'!D74 -> 48259.46568 | J17: Current Quarter Invoice Amount: | M17: ='Invoice - Claim Calculation'!D74 -> 48259.46568
A18: Variance Percentage: | G18: =((G17-G16)/G16)*1 -> -0.1610988635 | J18: Variance Percentage: | M18: =(M17-M16)/M16 -> -0.395623473
A19: A variance percentage explanation is: | G19: =IF(G18>=20%,"REQUIRED",IF(G18<=-20%,"REQUIRED","NOT REQUIRED")) -> NOT REQUIRED | J19: A variance percentage explanation is: | M19: =IF(M18>=20%,"REQUIRED",IF(M18<=-20%,"REQUIRED","NOT REQUIRED")) -> REQUIRED
A20: *If an explanation of the variance percentage is "REQUIRED", please fill out the appropriate variance narrative information below
B22: Prior Year Corresponding Quarter Variance Narrative (check all that apply):
D23: Change in the number of Time Survey Participants
D24: Time Survey results were materially different
D25: Increase/Decrease to other costs
D26: Change in Medi-Cal Percentage
D27: Difference in the number of Pay Periods
D28: Other:
B29: Detailed Explanation:
B32: Prior Quarter Variance Narrative (check all that apply):
D33: Change in the number of Time Survey Participants
B34: X | D34: Time Survey results were materially different
D35: Increase/Decrease to other costs
D36: Change in Medi-Cal Percentage
D37: Difference in the number of Pay Periods
D38: Other:
B39: Detailed Explanation:
B40: There was a significant decrease in MAA activities and an increase in non-claimable activities
B42: If you have any questions or require further information, please feel free to contact me.
I43: Date | L43: 805-216-6585
B44: Signature | I44: Date | L44: Phone number
B45: Jim Morrison
B46: MAA/TCM Coordinator
B47: LGA: | E47: ='Invoice - Summary Page'!D4 -> ABC County | K47: Program: | L47: ='Invoice - Summary Page'!J4 -> Public Health
B48: Contract #: | E48: ='Invoice - Summary Page'!D6 -> 14-85697 | K48: Claiming Unit: | L48: ='Invoice - Summary Page'!J6 -> Outreach Program
B49: Period of Service: | E49: ='Invoice - Summary Page'!D8 -> 07/01/2016 - 09/30/2016 | K49: Invoice Number: | L49: ='Invoice - Summary Page'!J8 -> 16/17-1
M51: ='Invoice - Summary Page'!L28 -> Rev. 12/8/14 DHCS/SNFD

Sheet DHCS Info (hidden)
A1: ps | B1: th@tnew$
A2: 12 | B2: 2 | C2: Medi-Cal
A3: 16 | B3: 2 | C3: Grants
A4: 20 | B4: 2 | C4: General
A5: 24 | B5: 2 | C5: Medicare
A6: 28 | B6: 2 | C6: Insurance
A7: 32 | B7: 2 | C7: Fees
A8: 36 | B8: 2 | C8: Revenue
A13: original
A14: 12 | B14: 4 | C14: Medi-Cal
A15: 18 | B15: 4 | C15: Grants
A16: 24 | B16: 4 | C16: General
A17: 30 | B17: 4 | C17: Medicare
A18: 36 | B18: 4 | C18: Insurance
A19: 42 | B19: 4 | C19: Fees
A20: 48 | B20: 4 | C20: Revenue

Sheet Non-Enhanced MAA Codes (hidden)
A1: Code | B1: Description | C1: FFP Rate | D1: Medi-Cal %
A2: 4 | B2: Medi-Cal Outreach | C2: TM | D2: ='Invoice - T.S. Results Summary'!L9 -> 1
A3: 6 | B3: Referral, Coordination, and Monitoring of Medi-Cal Services | C3: PM | D3: ='Invoice - T.S. Results Summary'!L11 -> 0.4275
A4: 8 | B4: Facilitating Med-Cal Application | C4: TM | D4: ='Invoice - T.S. Results Summary'!L13 -> 1
A5: 10 | B5: Arranging and/or Providing Non-Emergency, Non-Medical Transporation to a Medi-Cal Covered Service | C5: PM | D5: ='Invoice - T.S. Results Summary'!L15 -> 0
A6: 12 | B6: Contract Administration (A) for Medi-Cal Services specific for Medi-Cal populations | C6: TM | D6: ='Invoice - T.S. Results Summary'!L17 -> 1
A7: 13 | B7: Contract Administration (B) for Medi-Cal Services specific for Medi-Cal and Non Medi-Cal populations | C7: PM | D7: ='Invoice - T.S. Results Summary'!L18 -> 0.4275
A8: 15 | B8: Program Planning & Policy Development (A) (Non-enhanced) for Medi-Cal Services for Medi-Cal clients | C8: TM | D8: ='Invoice - T.S. Results Summary'!L20 -> 1
A9: 17 | B9: Program Planning & Policy Development (B) (Non-enhanced) for Medi-Cal Services for Medi-Cal and Non Medi-Cal clients | C9: PM | D9: ='Invoice - T.S. Results Summary'!L22 -> 0.4275
A10: 19 | B10: MAA/TCM Coordination and Claims Administration | C10: TM | D10: ='Invoice - T.S. Results Summary'!L24 -> 1
A11: 20 | B11: MAA/TCM Implementation Training | C11: TM | D11: ='Invoice - T.S. Results Summary'!L25 -> 1

Sheet Enhanced MAA Codes (hidden)
A1: Code | B1: Description | C1: FFP Rate | D1: Medi-Cal %
A2: 16 | B2: Program Planning & Policy Development Skilled Professional Medical Personnel (SPMP) (A) (Enhanced) for Medi-Cal Services for Medi-Cal clients | C2: TM (Enhanced) | D2: ='Invoice - T.S. Results Summary'!L21 -> 1
A3: 18 | B3: Program Planning & Policy Development (SPMP) (B) (Enhanced) for Medi-Cal Services for Medi-Cal and Non Medi-Cal clients | C3: PM (Enhanced) | D3: ='Invoice - T.S. Results Summary'!L23 -> 0.4275
